bitfinex-derivatives/quotes_SOLF0:USTF0_20241017
["timestamp","ask_amount","ask_price","bid_price","bid_amount"]
[1729188569318,3.368,148.48,148.43,6.86]
[1729188569827,3.3692,148.43,148.4,3.3696]
[1729188570020,4.3681,148.47,148.36,6.86]
[1729188570216,4.3681,148.47,148.36,48.92]
[1729188570723,4.3681,148.47,148.39,3.3699]
[1729188570921,4.3681,148.47,148.36,48.92]
[1729188571420,4.3681,148.47,148.36,6.86]
[1729188571620,42.06,148.45,148.37,6.86]
[1729188571825,42.06,148.45,148.38,3.37]
[1729188572620,42.06,148.45,148.37,6.86]
[1729188572815,4.3681,148.47,148.37,6.86]
[1729188573021,4.3681,148.47,148.39,42.06]
[1729188573022,4.8517,148.47,148.39,42.06]
[1729188573624,1.4835,148.47,148.44,3.3686]
[1729188573822,6.86,148.49,148.44,6.7548412]
[1729188574024,3.3687,148.45,148.42,3.3692]
[1729188574229,48.92,148.49,148.37,6.86]
[1729188574527,42.06,148.46,148.39,3.3698]
[1729188574724,42.06,148.46,148.37,6.86]
[1729188574725,1.4786,148.45,148.37,6.86]
[1729188575128,1.07,148.44,148.38,3.3701]
[1729188575322,1.07,148.44,148.37,6.86]
[1729188576025,1.07,148.44,148.35,1.4747]
[1729188576225,2.5358,148.44,148.35,1.4747]
[1729188576421,44.5958,148.44,148.33,1.3956]
[1729188576724,3.3695,148.41,148.38,3.3701]
[1729188577333,2.5358,148.44,148.35,6.86]
[1729188577525,1.07,148.44,148.36,42.06]
[1729188577721,1.07,148.44,148.37,1.3968]
[1729188578130,1.07,148.44,148.42,3.3691]
[1729188578329,1.07,148.44,148.41,3.35411309]
[1729188578528,1.07,148.44,148.37,1.3968]
[1729188578934,1.07,148.44,148.36,1.3672]
[1729188579434,1.07,148.44,148.38,3.3701]
[1729188579937,6.86,148.43,148.33,3.28997197]
[1729188580240,42.06,148.42,148.33,3.33153214]
[1729188580533,46.3392,148.42,148.33,3.33153214]
[1729188580733,4.2792,148.42,148.32,1.3533]
[1729188581127,4.2792,148.42,148.35,3.3709]
[1729188581330,4.2792,148.42,148.33,3.3688392]
[1729188581532,4.2792,148.42,148.32,1.3533]
[1729188581730,3.37,148.39,148.35,3.3706]
[1729188582134,4.2792,148.42,148.34,3.41974941]
[1729188582334,3.3699,148.4,148.36,3.3705]
[1729188582726,3.3699,148.4,148.32,4.78484978]
[1729188583127,1.07,148.44,148.33,42.06]
[1729188583328,1.07,148.44,148.32,4.78484978]
[1729188583329,1.07,148.44,148.42,3.3691]
[1729188584229,1.07,148.44,148.4,3.44889953]
[1729188584430,1.07,148.44,148.38,6.86]
[1729188585747,1.07,148.44,148.42,3.3692]
[1729188585946,1.07,148.44,148.41,3.38555515]
[1729188586137,1.07,148.44,148.38,6.86]
[1729188586337,1.07,148.44,148.42,3.3691]
[1729188587343,3.3686,148.45,148.42,3.3691]
[1729188588545,3.3686,148.45,148.41,6.68790444]
[1729188589038,2.9386,148.47,148.42,3.3691]
[1729188589039,1.07,148.44,148.42,3.3691]
[1729188589841,1.07,148.44,148.42,6.81024995]
[1729188591539,1.07,148.44,148.36,32.74]
[1729188592445,7.93,148.44,148.34,25.88]
[1729188592842,3.3698,148.4,148.37,3.3703]
[1729188593147,7.93,148.44,148.37,3.3703]
[1729188593354,33.81,148.44,148.33,6.86]
[1729188594047,3.3697,148.41,148.36,3.3706]
[1729188594251,7.93,148.44,148.33,6.86]
[1729188594840,3.3696,148.41,148.38,3.3701]
[1729188595242,6.54,148.43,148.35,25.88]
[1729188595441,3.3696,148.41,148.35,25.88]
[1729188595854,3.3696,148.41,148.38,3.37]
[1729188596252,6.54,148.43,148.35,25.88]
[1729188596552,6.54,148.43,148.33,6.86]
[1729188596859,32.42,148.43,148.33,6.86]
[1729188597047,32.42,148.43,148.34,3.371]
[1729188597547,3.3705,148.37,148.34,3.371]
[1729188597747,6.54,148.39,148.32,6.80294978]
[1729188597956,25.88,148.41,148.32,6.80294978]
[1729188597957,3.371,148.35,148.32,6.80294978]
[1729188598149,9.4255,148.38,148.32,3.43154978]
[1729188598347,3.3706,148.37,148.32,3.3715]
[1729188598654,9.4255,148.38,148.28,9.424]
[1729188599056,3.3708,148.36,148.33,3.3712]
[1729188599862,1.4002,148.4,148.32,25.88]
[1729188600047,1.4002,148.4,148.32,32.42]
[1729188600252,3.3706,148.37,148.34,3.3709]
[1729188600645,1.4002,148.4,148.32,6.54]
[1729188600849,1.4002,148.4,148.3,25.88]
[1729188601451,3.3706,148.37,148.33,3.3711]
[1729188601757,1.4002,148.4,148.33,3.3711]
[1729188602054,1.4002,148.4,148.3,25.88]
[1729188602659,3.3701,148.39,148.37,3.3704]
[1729188602953,1.4002,148.4,148.3,25.88]
[1729188603359,27.2802,148.4,148.29,6.54]
[1729188603549,25.88,148.38,148.28,11.41566309]
[1729188603750,9.9103,148.38,148.31,3.3718]
[1729188603946,9.9103,148.38,148.28,37.29566309]
[1729188603947,6.54,148.38,148.28,37.29566309]
[1729188604355,3.3708,148.36,148.28,37.29566309]
[1729188604552,6.54,148.38,148.29,6.54]
[1729188604952,6.54,148.38,148.3,3.3718]
[1729188605463,6.54,148.38,148.29,6.6904796]
[1729188605662,25.88,148.37,148.29,3.3183796]
[1729188606059,3.3711,148.34,148.26,33.8457]
[1729188606361,2.8586,148.36,148.26,7.9657]
[1729188606549,2.8586,148.36,148.27,25.88]
[1729188606750,2.8586,148.36,148.27,29.19568087]
[1729188606963,3.3715,148.33,148.29,3.3722]
[1729188607158,32.42,148.47,148.32,25.88]
[1729188607364,2.9075,148.43,148.32,25.88]
[1729188607657,1.372,148.42,148.31,1.3988]
[1729188607963,6.54,148.41,148.26,4.738683]
[1729188608153,25.88,148.39,148.27,32.42]
[1729188608863,3.3707,148.36,148.27,32.42]
[1729188609056,1.06,148.38,148.27,32.42]
[1729188609356,1.06,148.38,148.35,25.88]
[1729188609564,1.06,148.38,148.35,29.24221911]
[1729188609859,1.06,148.38,148.37,3.3704]
[1729188610059,1.4287,148.43,148.36,1.4452]
[1729188610256,6.54,148.46,148.37,25.88]
[1729188610453,27.289,148.5,148.38,6.54]
[1729188610658,6.54,148.49,148.38,6.54]
[1729188611653,3.3685,148.46,148.38,6.54]
[1729188611855,1.409,148.5,148.39,25.88]
[1729188612157,1.398,148.51,148.44,25.88]
[1729188612466,25.88,148.56,148.44,32.42]
[1729188612467,1.4352,148.54,148.44,32.42]
[1729188612966,1.4352,148.54,148.46,25.88]
[1729188613463,25.88,148.63,148.51,25.88]
[1729188613662,250.88,148.7,148.51,25.88]
[1729188613663,9.446,148.65,148.52,6.54]
[1729188613963,2.906,148.65,148.56,25.88]
[1729188614160,1.5023,148.69,148.59,25.88]
[1729188614354,1.5023,148.69,148.6,6.54]
[1729188614558,1.5023,148.69,148.62,25.88]
[1729188614757,3.3634,148.68,148.61,3.3648]
[1729188615057,1.5023,148.69,148.6,35.83618791]
[1729188615458,3.3636,148.67,148.61,3.3649]
[1729188615867,3.3643,148.65,148.6,25.88]
[1729188616062,6.54,148.67,148.55,6.54]
[1729188616253,48.55,148.67,148.55,48.55]
[1729188617256,48.55,148.67,148.57,42.01]
[1729188617257,6.54,148.67,148.57,42.01]
[1729188617459,6.54,148.67,148.59,42.01]
[1729188617657,9.9038,148.67,148.6,3.365]
[1729188617859,6.54,148.67,148.6,3.365]
[1729188618161,6.54,148.67,148.59,48.55]
[1729188618364,6.54,148.67,148.61,3.3649]
[1729188618558,6.54,148.67,148.59,48.55]
[1729188618759,3.3648,148.62,148.57,45.3757]
[1729188618960,6.54,148.67,148.55,42.01]
[1729188618961,42.01,148.65,148.55,42.01]
[1729188619160,1.4726,148.64,148.55,42.01]
[1729188619366,6.54,148.63,148.54,6.54]
[1729188619761,3.3654,148.59,148.54,6.54]
[1729188620061,1.4709,148.62,148.52,52.00020832]
[1729188620258,3.3659,148.57,148.52,3.3668]
[1729188620662,48.55,148.58,148.47,48.55]
[1729188620862,3.3665,148.55,148.5,3.3673]
[1729188621164,8.0115,148.57,148.49,42.01]
[1729188621460,8.0115,148.57,148.51,3.3671]
[1729188621664,8.0115,148.57,148.47,51.99767694]
[1729188622062,8.0115,148.57,148.49,42.01]
[1729188622667,3.3663,148.56,148.49,42.01]
[1729188623261,1.4715,148.57,148.49,42.01]
[1729188623461,1.4715,148.57,148.49,48.63]
[1729188623969,3.3664,148.55,148.49,48.63]
[1729188624371,3.3664,148.55,148.5,3.3673]
[1729188624762,1.4715,148.57,148.47,3.44767694]
[1729188624961,42.01,148.56,148.45,45.38766166]
[1729188625259,42.01,148.56,148.45,3.37766166]
[1729188625567,42.01,148.56,148.43,6.62]
[1729188625772,2.9693,148.57,148.45,42.01]
[1729188626065,9.5893,148.57,148.5,42.01]
[1729188626271,1.4715,148.57,148.51,3.33321399]
[1729188626773,3.3662,148.56,148.51,6.70041399]
[1729188627069,3.3662,148.56,148.51,3.3672]
[1729188628169,3.3662,148.56,148.52,3.3669]
[1729188628377,3.3659,148.57,148.52,3.3669]
[1729188628669,8.0042,148.61,148.52,48.63]
[1729188629263,3.3655,148.59,148.54,3.3664]
[1729188629461,8.0042,148.61,148.54,3.3664]
[1729188629664,1.3842,148.61,148.52,48.63]
[1729188629864,4.7492,148.61,148.57,3.3657]
[1729188630064,3.365,148.61,148.57,3.3657]
[1729188630473,4.8358,148.62,148.58,3.3656]
[1729188630769,1.4709,148.62,148.57,42.01]
[1729188630973,1.4709,148.62,148.55,42.01]
[1729188631573,1.4709,148.62,148.52,48.63]
[1729188631774,3.3656,148.59,148.54,3.3664]
[1729188631967,1.4709,148.62,148.55,42.01]
[1729188632373,1.4709,148.62,148.57,3.3658]
[1729188633173,1.4709,148.62,148.55,42.01]
[1729188633373,1.4709,148.62,148.52,48.63]
[1729188633775,3.3656,148.59,148.52,48.63]
[1729188634477,3.3657,148.58,148.54,3.3663]
[1729188634983,1.4709,148.62,148.52,48.63]
[1729188635173,3.3654,148.59,148.52,48.63]
[1729188635376,1.4709,148.62,148.52,48.63]
[1729188635575,3.3654,148.59,148.55,3.3661]
[1729188635773,3.3654,148.59,148.52,48.63]
[1729188635774,1.4709,148.62,148.52,48.63]
[1729188636076,3.3653,148.6,148.55,42.01]
[1729188636779,3.3653,148.6,148.56,3.366]
[1729188636979,1.4709,148.62,148.52,48.63]
[1729188637175,1.4709,148.62,148.52,42.01]
[1729188637976,1.4709,148.62,148.53,25.86]
[1729188638479,3.3653,148.6,148.56,3.366]
[1729188638682,1.4709,148.62,148.55,3.29630428]
[1729188638877,1.4709,148.62,148.53,25.86]
[1729188639076,3.3654,148.6,148.56,3.3661]
[1729188639473,1.4709,148.62,148.56,3.3661]
[1729188640370,27.3309,148.62,148.5,25.86]
[1729188640584,25.86,148.58,148.47,6.62]
[1729188640774,8.0703,148.57,148.47,6.62]
[1729188640978,8.0703,148.57,148.48,25.86]
[1729188642388,8.0703,148.57,148.45,25.86]
[1729188642582,25.86,148.53,148.43,9.90910368]
[1729188642788,3.3674,148.51,148.45,3.3684]
[1729188643081,7.9967,148.52,148.43,35.76910368]
[1729188643482,7.9967,148.52,148.45,3.3685]
[1729188643682,7.9967,148.52,148.43,9.90910368]
[1729188643884,25.86,148.51,148.41,25.86]
[1729188644084,3.369,148.44,148.4,6.72369515]
[1729188644278,3.369,148.44,148.4,3.3696]
[1729188644482,3.3686,148.45,148.41,3.3693]
[1729188644690,6.62,148.49,148.4,3.30290302]
[1729188644892,6.62,148.49,148.38,32.48]
[1729188645187,32.48,148.49,148.38,6.62]
[1729188645389,1.3667,148.48,148.38,6.62]
[1729188645889,3.369,148.44,148.39,3.3698]
[1729188646090,3.369,148.44,148.4,3.44947681]
[1729188646286,1.3667,148.48,148.38,32.48]
[1729188647383,3.3688,148.44,148.38,32.48]
[1729188647586,1.3667,148.48,148.38,32.48]
[1729188648386,6.62,148.49,148.41,25.86]
[1729188648593,6.62,148.49,148.42,3.41173342]
[1729188648888,3.3677,148.49,148.41,25.86]
[1729188649192,3.3677,148.49,148.42,6.62]
[1729188649597,6.62,148.5,148.43,25.86]
[1729188649892,3.3676,148.5,148.43,25.86]
[1729188650093,3.3676,148.5,148.46,3.3682]
[1729188650697,6.62,148.53,148.46,3.3682]
[1729188650893,6.62,148.53,148.43,3.3689]
[1729188651086,25.86,148.51,148.39,6.62]
[1729188651290,25.86,148.51,148.4,3.44576987]
[1729188651486,1.3709,148.5,148.4,3.44576987]
[1729188651695,6.62,148.49,148.4,3.44576987]
[1729188651988,32.48,148.49,148.39,3.3698]
[1729188652292,32.48,148.49,148.4,3.38892642]
[1729188652486,1.3709,148.5,148.38,25.86]
[1729188652687,6.62,148.49,148.41,25.86]
[1729188652893,6.62,148.49,148.42,3.32658661]
[1729188653188,3.368,148.48,148.44,3.3686]
[1729188653389,6.62,148.49,148.43,3.42296058]
[1729188653585,1.3767,148.52,148.43,25.86]
[1729188653791,3.3678,148.49,148.46,3.3682]
[1729188655295,3.3675,148.5,148.43,29.2347736]
[1729188655695,7.8567,148.52,148.43,29.2347736]
[1729188655886,7.8567,148.52,148.42,3.41350929]
[1729188656093,7.8567,148.52,148.4,32.34]
[1729188656393,7.8567,148.52,148.4,35.70027849]
[1729188656694,3.368,148.48,148.4,35.70027849]
[1729188656888,7.8567,148.52,148.43,25.86]
[1729188657092,3.3675,148.5,148.43,25.86]
[1729188657305,7.8567,148.52,148.43,25.86]
[1729188657687,3.3676,148.5,148.46,3.3682]
[1729188658689,3.3677,148.49,148.46,3.3682]
[1729188659495,7.8567,148.52,148.41,25.86]
[1729188659691,25.86,148.51,148.4,3.36027849]
[1729188659903,25.86,148.51,148.39,6.48]
[1729188660095,3.3694,148.42,148.4,3.42405405]
[1729188660498,3.3697,148.41,148.38,3.3701]
[1729188660699,1.4816,148.46,148.37,1.4638]
[1729188661000,3.3695,148.42,148.38,3.37]
[1729188661201,1.4153,148.45,148.36,25.86]
[1729188661593,3.3696,148.41,148.37,3.3703]
[1729188662299,3.3698,148.4,148.36,3.3705]
[1729188662695,3.3698,148.4,148.34,25.86]
[1729188662894,6.48,148.43,148.34,25.86]
[1729188663095,3.3696,148.41,148.37,3.3703]
[1729188663291,3.3696,148.41,148.34,25.86]
[1729188663702,3.3694,148.42,148.38,3.37]
[1729188663897,6.48,148.43,148.38,3.37]
[1729188664098,3.3696,148.41,148.34,25.86]
[1729188664298,6.48,148.43,148.34,25.86]
[1729188664491,32.34,148.43,148.32,3.39919872]
[1729188664701,3.3698,148.4,148.31,2.8863]
[1729188664902,32.34,148.43,148.35,3.3707]
[1729188665099,32.34,148.43,148.36,3.3115336]
[1729188665293,3.37,148.39,148.36,3.3115336]
[1729188665904,3.37,148.39,148.35,3.3707]
[1729188665905,3.3701,148.39,148.35,3.29468101]
[1729188666206,32.34,148.43,148.32,25.86]
[1729188666499,32.34,148.43,148.32,35.65894873]
[1729188667505,3.3701,148.39,148.35,3.3708]
[1729188667694,3.3701,148.39,148.32,35.65894873]
[1729188667899,3.3701,148.39,148.36,3.3706]
[1729188668101,7.8953,148.45,148.34,25.86]
[1729188668306,7.8953,148.45,148.39,3.3698]
[1729188668498,3.3693,148.42,148.4,3.42615532]
[1729188668807,7.8953,148.45,148.36,32.34]
[1729188669000,3.3692,148.43,148.39,3.3698]
[1729188669597,36.47652372,148.74,148.42,25.86]
[1729188669797,1.394,148.52,148.42,25.86]
[1729188670001,1.394,148.52,148.4,6.48]
[1729188670002,1.394,148.52,148.44,25.86]
[1729188670202,3.3676,148.5,148.46,3.3683]
[1729188670707,3.3673,148.51,148.46,3.3683]
[1729188670910,3.3673,148.51,148.44,32.34]
[1729188671310,3.367,148.53,148.48,3.3678]
[1729188671503,6.48,148.56,148.48,3.42708568]
[1729188671702,6.48,148.56,148.47,25.86]
[1729188672111,3.3667,148.54,148.49,3.3675]
[1729188672414,9.3319,148.58,148.49,29.25744311]
[1729188672615,2.8519,148.58,148.49,25.86]
[1729188672802,153.31961398,148.63,148.52,25.86]
[1729188673007,153.31961398,148.63,148.49,3.35870565]
[1729188673008,1.4005,148.62,148.54,25.86]
[1729188673408,1.4005,148.62,148.53,6.48]
[1729188673908,3.3653,148.6,148.55,3.3662]
[1729188676205,3.3651,148.61,148.56,3.3661]
[1729188676407,1.4005,148.62,148.53,6.48]
[1729188676712,1.4005,148.62,148.55,3.3661]
[1729188676713,3.3652,148.6,148.55,3.3661]
[1729188677609,1.4005,148.62,148.52,25.86]
[1729188677921,1.4005,148.62,148.52,6.48]
[1729188678610,1.4005,148.62,148.52,32.34]
[1729188679011,3.3654,148.59,148.54,3.3664]
[1729188679409,1.4005,148.62,148.54,3.3664]
[1729188679714,3.3659,148.57,148.54,3.3664]
[1729188680403,6.48,148.59,148.5,27.2245]
[1729188680608,25.86,148.58,148.49,3.35870565]
[1729188680808,25.86,148.58,148.47,6.48]
[1729188681204,25.86,148.56,148.45,6.48]
[1729188681509,3.3678,148.49,148.46,3.3683]
[1729188681821,3.3678,148.49,148.44,6.48]
[1729188682011,1.3682,148.52,148.42,2.8733]
[1729188682206,1.3682,148.52,148.43,6.48]
[1729188682604,3.368,148.48,148.44,3.3686]
[1729188682911,6.48,148.53,148.43,6.48]
[1729188683820,3.3681,148.48,148.44,3.3687]
[1729188684008,6.48,148.53,148.43,6.48]
[1729188684414,3.3677,148.49,148.43,6.48]
[1729188684619,6.48,148.53,148.43,6.48]
[1729188684915,3.3682,148.47,148.44,3.3688]
[1729188685917,25.86,148.52,148.44,3.3688]
[1729188686120,3.368,148.48,148.44,3.3688]
[1729188686423,6.48,148.53,148.46,3.3683]
[1729188686815,3.3678,148.49,148.46,3.3683]
[1729188687520,3.3678,148.49,148.45,3.3685]
[1729188688016,3.3679,148.48,148.43,6.48]
[1729188688221,6.48,148.53,148.44,3.3687]
[1729188688519,25.86,148.52,148.44,3.3687]
[1729188688705,3.3675,148.5,148.44,3.3687]
[1729188688910,25.86,148.52,148.45,3.3685]
[1729188689321,30.0409,148.54,148.43,6.48]
[1729188689516,36.3809,148.54,148.47,3.368]
[1729188689820,3.3676,148.5,148.47,3.368]
[1729188690009,10.5209,148.54,148.49,3.3677]
[1729188690205,10.5209,148.54,148.49,3.32681789]
[1729188690515,3.3673,148.51,148.49,3.40294028]
[1729188690822,36.3809,148.54,148.43,6.48]
[1729188691117,3.3673,148.51,148.46,3.3682]
[1729188691313,36.3809,148.54,148.46,3.3682]
[1729188691816,3.3677,148.5,148.46,3.3682]
[1729188692014,36.3809,148.54,148.46,3.3682]
[1729188692212,3.3674,148.51,148.48,3.3679]
[1729188692513,2.8079,148.54,148.48,3.42213929]
[1729188692714,1.3715,148.54,148.47,6.34]
[1729188692910,6.34,148.57,148.47,7.7373]
[1729188693221,3.3667,148.54,148.5,3.3675]
[1729188693417,6.34,148.57,148.51,3.33388773]
[1729188693728,25.86,148.56,148.48,3.43122014]
[1729188693915,25.86,148.56,148.44,6.34]
[1729188693916,25.86,148.53,148.44,6.34]
[1729188694114,32.2,148.53,148.44,6.34]
[1729188694710,32.2,148.53,148.42,1.4919]
[1729188694919,25.86,148.51,148.41,7.7373]
[1729188695516,25.86,148.51,148.41,1.3973]
[1729188695725,25.86,148.51,148.41,7.7373]
[1729188695922,25.86,148.51,148.43,3.3689]
[1729188696425,3.3684,148.46,148.43,3.3689]
[1729188696621,25.86,148.51,148.41,7.7373]
[1729188696825,32.2,148.53,148.45,3.3685]
[1729188697018,3.3681,148.48,148.45,3.3685]
[1729188697218,6.34,148.53,148.46,3.3682]
[1729188697814,3.3678,148.49,148.46,3.3682]
[1729188698227,6.34,148.53,148.43,25.86]
[1729188698428,3.3681,148.48,148.45,3.3685]
[1729188698925,3.3674,148.51,148.48,3.3677]
[1729188699126,28.7816,148.55,148.48,3.3677]
[1729188699127,2.9216,148.55,148.49,32.2]
[1729188699331,1.4755,148.55,148.49,32.2]
[1729188699631,3.3667,148.54,148.51,3.367]
[1729188700017,1.3578,148.59,148.49,35.65315967]
[1729188700230,2.8005,148.59,148.49,35.65315967]
[1729188700426,2.8005,148.59,148.52,25.86]
[1729188700624,2.8005,148.59,148.54,3.3665]
[1729188700929,2.8005,148.59,148.52,25.86]
[1729188701323,3.3662,148.56,148.53,3.3666]
[1729188701528,2.8005,148.59,148.49,35.65315967]
[1729188701822,3.3661,148.56,148.51,3.3672]
[1729188702025,2.8005,148.59,148.49,9.79315967]
[1729188702417,2.8005,148.59,148.52,3.3669]
[1729188702924,2.8005,148.59,148.49,9.79315967]
[1729188703623,3.3664,148.55,148.52,3.367]
[1729188704428,3.3668,148.53,148.5,3.3673]
[1729188705821,25.86,148.55,148.44,25.86]
[1729188706029,1.4925,148.52,148.45,6.34]
[1729188706427,3.3677,148.49,148.46,3.3682]
[1729188707933,1.4925,148.52,148.45,9.7085]
[1729188708524,3.3685,148.46,148.43,3.369]
[1729188708724,1.4676,148.51,148.42,6.34]
[1729188710227,3.3679,148.48,148.45,3.3685]
[1729188711432,3.3684,148.46,148.43,3.3689]
[1729188711727,3.3684,148.46,148.42,6.34]
[1729188711936,1.4676,148.51,148.42,6.34]
[1729188712125,3.3682,148.47,148.44,3.3688]
[1729188717733,1.4676,148.51,148.46,3.3682]
[1729188717734,3.3679,148.49,148.46,3.3682]
[1729188717931,7.8325,148.52,148.44,25.86]
[1729188718254,1.4925,148.52,148.44,25.86]
[1729188718431,1.4925,148.52,148.46,25.86]
[1729188718631,1.4925,148.52,148.47,6.12]
[1729188719133,1.4925,148.52,148.44,25.86]
[1729188719433,3.3681,148.48,148.45,3.3685]
[1729188719631,3.3681,148.48,148.42,6.12]
[1729188720029,3.3677,148.49,148.44,3.3687]
[1729188720235,25.86,148.5,148.4,3.37524512]
[1729188720533,25.86,148.46,148.37,3.4376401]
[1729188720839,25.86,148.43,148.37,3.32917169]
[1729188721042,3.3702,148.38,148.34,3.371]
[1729188721234,3.3702,148.38,148.34,6.76147992]
[1729188721438,7.4884,148.42,148.34,3.39047992]
[1729188721736,7.4884,148.42,148.34,25.86]
[1729188721936,7.4884,148.42,148.34,29.1834451]
[1729188722334,3.3697,148.41,148.36,3.3705]
[1729188722639,7.4884,148.42,148.31,110.56388]
[1729188722830,3.3706,148.37,148.33,3.3713]
[1729188723240,1.3734,148.4,148.31,113.85025025]
[1729188723442,1.3734,148.4,148.31,139.71025025]
[1729188723741,1.3734,148.4,148.31,113.85025025]
[1729188723941,3.3709,148.35,148.31,3.28637025]
[1729188724241,6.12,148.37,148.28,31.98]
[1729188724534,9.4905,148.37,148.32,3.3714]
[1729188724740,9.4905,148.37,148.33,3.43634818]
[1729188725242,6.12,148.37,148.33,3.43634818]
[1729188725535,6.12,148.37,148.28,31.98]
[1729188725736,3.371,148.35,148.28,31.98]
[1729188726136,3.3712,148.34,148.28,25.86]
[1729188726530,3.3712,148.34,148.3,3.3718]
[1729188726742,3.3712,148.34,148.31,3.38829482]
[1729188727438,1.3734,148.4,148.31,25.86]
[1729188727645,7.4934,148.4,148.31,31.98]
[1729188728435,3.3709,148.35,148.31,31.98]
[1729188728746,7.4934,148.4,148.26,98.62]
[1729188728747,6.12,148.36,148.26,98.62]
[1729188728943,25.86,148.38,148.26,98.62]
[1729188728944,3.3717,148.32,148.28,3.3723]
[1729188729243,1.4799,148.34,148.26,31.98]
[1729188729636,1.4799,148.34,148.26,25.86]
[1729188730045,3.3716,148.32,148.28,3.3724]
[1729188730238,1.4799,148.34,148.26,25.86]
[1729188730440,1.4799,148.34,148.28,25.86]
[1729188730948,1.4799,148.34,148.31,3.3717]
[1729188731248,3.3716,148.32,148.28,3.3723]
[1729188731551,1.4799,148.34,148.24,1.4007]
[1729188731839,3.3716,148.32,148.28,3.3724]
[1729188733046,3.3718,148.31,148.28,3.3724]
[1729188734543,3.3716,148.32,148.28,3.3724]
[1729188736043,25.86,148.31,148.22,3.43730324]
[1729188736243,25.86,148.31,148.18,25.86]
[1729188736441,25.86,148.29,148.18,29.2824775]
[1729188736645,3.3734,148.24,148.18,29.2824775]
[1729188736842,7.498,148.28,148.18,29.2824775]
[1729188737045,1.4947,148.27,148.18,35.4224775]
[1729188737441,3.3734,148.24,148.18,35.4224775]
[1729188737638,1.4947,148.27,148.18,35.4224775]
[1729188737844,1.4753,148.26,148.18,35.4224775]
[1729188738239,1.4753,148.26,148.1,72.82]
[1729188738240,27.3353,148.26,148.09,16.8753]
[1729188738446,3.3734,148.24,148.2,3.3742]
[1729188738651,6.14,148.25,148.21,3.30633599]
[1729188738853,6.14,148.25,148.17,25.86]
[1729188739051,3.3736,148.23,148.19,3.3743]
[1729188739252,6.14,148.25,148.17,3.4315172]
[1729188739443,3.3743,148.2,148.16,3.3751]
[1729188739643,6.14,148.25,148.17,3.31375914]
[1729188739844,6.14,148.25,148.13,25.86]
[1729188740047,3.3742,148.21,148.13,25.86]
[1729188740356,6.14,148.25,148.13,25.86]
[1729188740544,3.3743,148.2,148.16,3.375]
[1729188740741,6.14,148.25,148.17,3.33434149]
[1729188740942,1.4753,148.26,148.16,25.86]
[1729188741143,1.4753,148.26,148.19,25.86]
[1729188741341,7.6347,148.27,148.19,25.86]
[1729188741552,3.3731,148.26,148.21,3.3739]
[1729188741855,7.6347,148.27,148.21,3.3739]
[1729188742151,3.3733,148.25,148.17,2.8601]
[1729188742356,1.4947,148.27,148.17,2.8601]